bitfinex/quotes_BTCUSD_20251110
["timestamp","ask_amount","ask_price","bid_price","bid_amount"]
[1762782499422,0.67688249,106500.0,106490.0,0.00014409]
[1762782500057,0.67588249,106500.0,106490.0,0.00014409]
[1762782500289,0.6654169,106500.0,106490.0,0.00014409]
[1762782500711,0.6674169,106500.0,106490.0,0.00014409]
[1762782501309,0.74405918,106500.0,106490.0,0.00014409]
[1762782501517,0.76317284,106500.0,106490.0,0.00014409]
[1762782501942,0.74405918,106500.0,106490.0,0.00014409]
[1762782502146,0.35519907,106500.0,106490.0,0.11208409]
[1762782502347,0.39607907,106500.0,106490.0,0.11208409]
[1762782502550,0.58387249,106500.0,106490.0,0.06106409]
[1762782503436,0.60411108,106500.0,106490.0,0.06106409]
[1762782504195,0.64847569,106500.0,106490.0,0.02695409]
[1762782504798,0.68465797,106500.0,106490.0,0.02695409]
[1762782505199,0.72511797,106500.0,106490.0,0.00014409]
[1762782505792,0.68465797,106500.0,106490.0,0.00014409]
[1762782510938,0.64907797,106500.0,106490.0,0.11208409]
[1762782511193,0.68465797,106500.0,106490.0,0.00014409]
[1762782511414,0.72511797,106500.0,106490.0,0.00014409]
[1762782511622,0.68465797,106500.0,106490.0,0.02695409]
[1762782513354,0.74423163,106500.0,106490.0,0.00014409]
[1762782513588,0.76956853,106500.0,106490.0,0.00014409]
[1762782514423,0.79485254,106500.0,106490.0,0.00014409]
[1762782515574,0.82170811,106500.0,106490.0,0.00014409]
[1762782515787,0.76951564,106500.0,106490.0,0.00014409]
[1762782516001,0.82855883,106500.0,106490.0,0.00014409]
[1762782516227,0.76951564,106500.0,106490.0,0.00014409]
[1762782517012,0.80322193,106500.0,106490.0,0.00014409]
[1762782517427,0.76951564,106500.0,106490.0,0.00014409]
[1762782519374,0.78410827,106500.0,106490.0,0.00014409]
[1762782519584,0.80322193,106500.0,106490.0,0.00014409]
[1762782520634,0.78410827,106500.0,106490.0,0.00014409]
[1762782520839,0.80322193,106500.0,106490.0,0.00014409]
[1762782521298,0.80323552,106500.0,106490.0,0.00014409]
[1762782521724,0.78412186,106500.0,106490.0,0.00014409]
[1762782522686,0.78412186,106500.0,106490.0,0.00137859]
[1762782522895,0.75041557,106500.0,106490.0,0.00137859]
[1762782523549,0.70995557,106500.0,106490.0,0.00137859]
[1762782523780,0.70995557,106500.0,106490.0,0.02818859]
[1762782523985,0.67437557,106500.0,106490.0,0.11331859]
[1762782524192,0.75041557,106500.0,106490.0,0.00137859]
[1762782524393,0.82857242,106500.0,106490.0,0.00137859]
[1762782524598,2.16618315,106500.0,106490.0,0.00137859]
[1762782524800,1.76358815,106500.0,106490.0,0.00137859]
[1762782524938,1.73823184,106500.0,106490.0,0.00137859]
[1762782525145,1.73623184,106500.0,106490.0,0.00137859]
[1762782525540,1.73823184,106500.0,106490.0,0.00137859]
[1762782525748,1.73623184,106500.0,106490.0,0.00137859]
[1762782526168,0.54702862,106470.0,106460.0,0.02572]
[1762782526404,0.62837721,106470.0,106460.0,0.02576802]
[1762782526617,0.60814721,106470.0,106460.0,0.11089802]
[1762782527378,0.63635352,106470.0,106460.0,0.11089802]
[1762782529072,0.64564569,106470.0,106460.0,0.05987802]
[1762782529326,0.3714449,106470.0,106460.0,0.12466882]
[1762782529540,0.04088,106470.0,106460.0,0.12466882]
[1762782529748,0.04088,106470.0,106460.0,0.19999484]
[1762782529958,0.0373888,106490.0,106470.0,0.1878408]
[1762782530174,0.11276,106500.0,106480.0,0.31336472]
[1762782530381,0.11276,106500.0,106490.0,0.01787]
[1762782530562,0.5048355,106500.0,106490.0,0.103]
[1762782530804,0.48588953,106500.0,106490.0,0.103]
[1762782531063,0.323,106490.0,106480.0,0.06712]
[1762782531455,0.323,106490.0,106480.0,0.10123]
[1762782533136,0.51081106,106490.0,106480.0,0.10123]
[1762782534091,0.323,106490.0,106480.0,0.10123]
[1762782534691,0.51081106,106490.0,106480.0,0.10123]
[1762782534956,0.56081106,106490.0,106480.0,0.10123]
[1762782536407,0.58900915,106490.0,106480.0,0.10123]
[1762782536619,0.62519143,106490.0,106480.0,0.05021]
[1762782536831,0.5108287,106480.0,106470.0,0.07996]
[1762782537040,0.58789098,106480.0,106470.0,0.07996]
[1762782537242,0.58789098,106480.0,106470.0,0.11343]
[1762782537455,0.40006228,106480.0,106470.0,0.11343]
[1762782537668,0.36388,106480.0,106470.0,0.11343]
[1762782537880,0.5517087,106480.0,106470.0,0.11343]
[1762782538305,0.57991045,106480.0,106470.0,0.11343]
[1762782538718,0.59731045,106480.0,106470.0,0.06028]
[1762782539553,0.63238045,106480.0,106470.0,0.06028]
[1762782539767,0.63238045,106480.0,106470.0,0.02681]
[1762782539992,0.65262409,106480.0,106470.0,0.02681]
[1762782540400,0.51084634,106470.0,106460.0,0.08000802]
[1762782540823,0.56746862,106470.0,106460.0,0.02685802]
[1762782541032,0.68274499,106470.0,106460.0,4.802e-05]
[1762782541245,0.59567499,106470.0,106460.0,0.05854802]
[1762782541877,0.68274499,106470.0,106460.0,0.00104802]
[1762782542097,0.70298852,106470.0,106460.0,0.00204802]
[1762782542321,0.54704626,106460.0,106450.0,0.02385802]
[1762782542541,0.61114626,106460.0,106450.0,0.02400214]
[1762782542762,0.61114626,106460.0,106450.0,0.11062214]
[1762782542972,0.64621626,106460.0,106450.0,0.00014412]
[1762782543199,0.69821626,106460.0,106450.0,0.00014412]
[1762782545139,0.61114626,106460.0,106450.0,0.05864412]
[1762782546673,0.42328228,106460.0,106450.0,0.11179412]
[1762782546924,0.58796626,106460.0,106450.0,0.11179412]
[1762782547726,0.323,106460.0,106450.0,0.12551653]
[1762782547935,0.47668,106460.0,106450.0,0.11179412]
[1762782548943,0.66454398,106460.0,106450.0,0.11179412]
[1762782550534,0.69274966,106460.0,106450.0,0.11179412]
[1762782551176,0.75211194,106460.0,106450.0,0.05864412]
[1762782551382,0.78718194,106460.0,106450.0,0.05864412]
[1762782551650,0.72893194,106460.0,106450.0,0.11179412]
[1762782551824,0.54106796,106460.0,106450.0,0.11179412]
[1762782552454,0.72893194,106460.0,106450.0,0.11179412]
[1762782553079,0.54106796,106460.0,106450.0,0.11179412]
[1762782553487,0.72893194,106460.0,106450.0,0.11179412]
[1762782554111,0.54106796,106460.0,106450.0,0.11179412]
[1762782555770,0.50488568,106460.0,106450.0,0.11179412]
[1762782556632,0.69274966,106460.0,106450.0,0.11179412]
[1762782556840,0.50488568,106460.0,106450.0,0.11179412]
[1762782562923,0.35120568,106460.0,106450.0,0.11179412]
[1762782563131,0.36388,106460.0,106450.0,0.11179412]
[1762782568987,0.36388,106460.0,106450.0,0.151839]
[1762782569206,0.36388,106460.0,106450.0,0.11179412]
[1762782569573,0.36388,106460.0,106450.0,0.29967575]
[1762782569574,0.323,106460.0,106450.0,0.29967575]
[1762782569781,0.37352885,106500.0,106480.0,0.18782257]
[1762782569782,0.05906157,106500.0,106480.0,0.18782257]
[1762782569987,0.11276,106530.0,106490.0,0.58737961]
[1762782570178,0.04092,106520.0,106510.0,0.0172]
[1762782570379,0.36392,106520.0,106510.0,0.0172]
[1762782570602,0.36392,106520.0,106510.0,0.05109]
[1762782570817,0.04092,106520.0,106510.0,0.05109]
[1762782571000,0.04092,106520.0,106510.0,0.29049579]
[1762782571204,0.36406397,106520.0,106510.0,0.34757723]
[1762782571370,0.04106397,106520.0,106510.0,0.34757723]
[1762782573176,0.04106397,106520.0,106510.0,0.34957723]
[1762782573474,0.04106397,106520.0,106510.0,0.35057723]
[1762782573881,0.04106397,106520.0,106510.0,0.34957723]
[1762782574093,0.04106397,106520.0,106510.0,0.16180144]
[1762782574501,0.04106397,106520.0,106510.0,0.34957723]
[1762782575342,0.04106397,106520.0,106510.0,0.35157723]
[1762782583183,0.04106397,106520.0,106510.0,0.16380144]
[1762782584952,0.04106397,106520.0,106510.0,0.10672]
[1762782585150,0.36406397,106520.0,106510.0,0.10672]
[1762782586458,0.36406397,106520.0,106510.0,0.29449579]
[1762782586728,0.04106397,106520.0,106510.0,0.29449579]
[1762782587371,0.04106397,106520.0,106510.0,0.10672]
[1762782587596,0.04106397,106520.0,106510.0,0.29449579]
[1762782588032,0.04106397,106520.0,106510.0,0.16420139]
[1762782588149,0.04106397,106520.0,106510.0,0.10672]
[1762782588379,0.36406397,106520.0,106510.0,0.10672]
[1762782593836,0.55182213,106520.0,106510.0,0.10672]
[1762782594694,0.55182213,106520.0,106510.0,0.10472]
[1762782595097,0.55182213,106520.0,106510.0,0.10372]
[1762782595503,0.55182213,106520.0,106510.0,0.10472]
[1762782596324,0.36406397,106520.0,106510.0,0.10472]
[1762782596525,0.55182213,106520.0,106510.0,0.10472]
[1762782597921,0.36406397,106520.0,106510.0,0.10472]
[1762782598338,0.61187409,106520.0,106510.0,0.0192]
[1762782598587,0.57764409,106520.0,106510.0,0.10128]
[1762782600246,0.59789748,106520.0,106510.0,0.10128]
[1762782600654,0.66830976,106520.0,106510.0,0.0192]
[1762782600857,0.5280716,106520.0,106510.0,0.002]
[1762782601065,0.39308932,106520.0,106510.0,0.10952]
[1762782601269,0.39308932,106520.0,106510.0,0.1297246]
[1762782601472,0.37283593,106520.0,106510.0,0.1297246]
[1762782601682,0.37283593,106520.0,106510.0,0.29529579]
[1762782603285,0.37283593,106520.0,106510.0,0.10752]
[1762782603487,0.37283593,106520.0,106510.0,0.29529579]
[1762782603679,0.37283593,106520.0,106510.0,0.10752]
[1762782603900,0.37283593,106520.0,106510.0,0.10852]
[1762782604200,0.37283593,106520.0,106510.0,1.3361797]
[1762782607425,0.36406397,106520.0,106510.0,1.3361797]
[1762782608707,0.36406397,106520.0,106510.0,1.10952]
[1762782608945,0.37285436,106520.0,106510.0,1.10952]
[1762782609577,0.56061252,106520.0,106510.0,1.10952]
[1762782609772,0.37285436,106520.0,106510.0,1.10952]
[1762782609976,0.56061252,106520.0,106510.0,1.10952]
[1762782610889,0.37285436,106520.0,106510.0,1.10952]
[1762782611032,0.56061252,106520.0,106510.0,1.10952]
[1762782611237,0.57766252,106520.0,106510.0,1.05866]
[1762782611441,0.59791924,106520.0,106510.0,1.05866]
[1762782611754,0.59791958,106520.0,106510.0,1.05866]
[1762782611956,0.59791958,106520.0,106510.0,1.10952]
[1762782612146,0.41016142,106520.0,106510.0,1.10952]
[1762782612519,0.59791958,106520.0,106510.0,1.10952]
[1762782612723,0.59792126,106520.0,106510.0,1.10952]
[1762782612924,0.59792126,106520.0,106510.0,1.10852]
[1762782613124,0.3931131,106520.0,106510.0,1.10852]
[1762782613330,0.58087126,106520.0,106510.0,1.10852]
[1762782615025,0.3931131,106520.0,106510.0,1.10852]
[1762782615231,0.5606142,106520.0,106510.0,1.10852]
[1762782616497,0.56061289,106520.0,106510.0,1.10852]
[1762782616857,0.57866289,106520.0,106510.0,1.10852]
[1762782617265,0.39090473,106520.0,106510.0,1.10852]
[1762782617418,0.57866289,106520.0,106510.0,1.07852]
[1762782617624,0.57866289,106520.0,106510.0,1.10396]
[1762782617828,0.57866289,106520.0,106510.0,1.0531]
[1762782618030,0.57866289,106520.0,106510.0,1.10396]
[1762782618423,0.57866289,106520.0,106510.0,1.0531]
[1762782618628,0.69659517,106520.0,106510.0,1.002]
[1762782618830,0.71685025,106520.0,106510.0,1.002]
[1762782619484,0.71685025,106520.0,106510.0,1.001]
[1762782619830,0.71685025,106520.0,106510.0,1.002]
[1762782620612,0.71685025,106520.0,106510.0,1.001]
[1762782620811,0.71685025,106520.0,106510.0,1.002]
[1762782620930,0.71685025,106520.0,106510.0,1.001]
[1762782621327,0.48257209,106520.0,106510.0,1.01379]
[1762782621688,0.63710025,106520.0,106510.0,1.09587]
[1762782622116,0.37485473,106520.0,106510.0,1.09587]
[1762782623299,0.36606397,106520.0,106510.0,1.09587]
[1762782624386,0.55382213,106520.0,106510.0,1.09587]
[1762782624599,0.32514397,106520.0,106510.0,1.09587]
[1762782624779,0.36598397,106520.0,106510.0,1.09587]
[1762782624981,0.36598397,106520.0,106510.0,1.08903]
[1762782627198,0.36598397,106520.0,106510.0,1.18713173]
[1762782628239,0.36598397,106520.0,106510.0,1.08903]
[1762782628659,0.36498397,106520.0,106510.0,1.08903]
[1762782628821,0.36498397,106520.0,106510.0,1.09003]
[1762782629504,0.55274213,106520.0,106510.0,1.09003]
[1762782629710,0.55174213,106520.0,106510.0,1.09003]
[1762782630116,0.36398397,106520.0,106510.0,1.09103]
[1762782632909,0.60784213,106520.0,106510.0,1.00895]
[1762782633109,0.46696397,106520.0,106510.0,0.99516]
[1762782633331,0.36398397,106520.0,106510.0,1.08716]
[1762782634302,0.57480213,106520.0,106510.0,1.0415]
[1762782634510,0.65472213,106520.0,106510.0,1.01014]
[1762782640390,0.38704397,106520.0,106510.0,1.08716]
[1762782640660,0.36398397,106520.0,106510.0,1.08716]
[1762782641235,0.55174213,106520.0,106510.0,1.08716]
[1762782642164,0.65472213,106520.0,106510.0,0.99516]
[1762782646210,0.69090441,106520.0,106510.0,0.99516]
[1762782647053,0.32314397,106520.0,106510.0,1.08716]
[1762782647305,0.55174213,106520.0,106510.0,1.08716]
[1762782647507,0.36398397,106520.0,106510.0,1.08716]
[1762782656955,0.55174213,106520.0,106510.0,1.08716]
[1762782657175,0.36398397,106520.0,106510.0,1.08716]
[1762782657626,0.55174213,106520.0,106510.0,1.08716]
[1762782657828,0.36398397,106520.0,106510.0,1.08716]
[1762782658217,0.55174213,106520.0,106510.0,1.08716]
[1762782658647,0.36398397,106520.0,106510.0,1.08716]
[1762782660025,0.55174213,106520.0,106510.0,1.08716]
[1762782661443,0.60453213,106520.0,106510.0,1.01014]
[1762782661646,0.57480213,106520.0,106510.0,1.04292]
[1762782661775,0.57480213,106520.0,106510.0,1.08804]
[1762782662702,0.57480213,106520.0,106510.0,1.04292]
[1762782663045,0.55174213,106520.0,106510.0,1.08804]
[1762782663838,0.57417213,106520.0,106510.0,1.08804]
[1762782664046,0.64973213,106520.0,106510.0,0.99516]
[1762782664849,0.57417213,106520.0,106510.0,1.08682]
[1762782667299,0.38641397,106520.0,106510.0,1.08682]
[1762782667520,0.36398397,106520.0,106510.0,1.08682]
[1762782667913,0.55174213,106520.0,106510.0,1.08682]
[1762782668336,0.36398397,106520.0,106510.0,1.13652909]
[1762782668756,0.36398397,106520.0,106510.0,1.08682]
[1762782672655,0.36398397,106520.0,106510.0,1.27459579]
[1762782679372,0.36398397,106520.0,106510.0,1.08682]
[1762782682991,0.36398397,106520.0,106510.0,1.27459579]
[1762782683650,0.39216887,106520.0,106510.0,1.27459579]
[1762782683856,0.39216887,106520.0,106510.0,1.37269752]
[1762782684426,0.39216887,106520.0,106510.0,1.18492173]
[1762782684572,0.39216887,106520.0,106510.0,1.37269752]
[1762782686754,0.06916887,106520.0,106510.0,1.37269752]
[1762782687485,0.06916887,106520.0,106510.0,1.18492173]
[1762782688661,0.06916887,106520.0,106510.0,1.37269752]
[1762782689176,0.06916887,106520.0,106510.0,1.18492173]
[1762782689482,0.06916887,106520.0,106510.0,1.37269752]
[1762782689617,0.06916887,106520.0,106510.0,1.18492173]
[1762782690748,0.06916887,106520.0,106510.0,1.08682]
[1762782695236,0.25692703,106520.0,106510.0,1.08682]
[1762782695789,0.06916887,106520.0,106510.0,1.08682]
[1762782696192,0.25692703,106520.0,106510.0,1.08682]
[1762782697285,0.06916887,106520.0,106510.0,1.08682]
[1762782699097,0.25692703,106520.0,106510.0,1.08682]
[1762782700603,0.35576703,106520.0,106510.0,0.99516]
[1762782703298,0.30997703,106520.0,106510.0,1.00764]
[1762782703499,0.27862703,106520.0,106510.0,1.08468]
[1762782704573,0.32441703,106520.0,106510.0,1.03807]
[1762782704761,0.35576703,106520.0,106510.0,1.00764]
[1762782705532,0.35576703,106520.0,106510.0,0.99516]
[1762782705931,0.27862703,106520.0,106510.0,1.03807]
[1762782706136,0.35576703,106520.0,106510.0,1.00764]
[1762782707666,0.30997703,106520.0,106510.0,1.00764]
[1762782707875,0.35576703,106520.0,106510.0,1.00764]
[1762782708447,0.71494931,106520.0,106510.0,0.99516]
[1762782708645,0.73522515,106520.0,106510.0,0.99516]
[1762782708976,0.71494931,106520.0,106510.0,0.99416]
[1762782709174,0.73522534,106520.0,106510.0,0.99416]
[1762782709395,0.71494931,106520.0,106510.0,0.99516]
[1762782709606,0.71494931,106520.0,106510.0,0.99416]
[1762782709846,0.71594931,106520.0,106510.0,0.99416]
[1762782710050,0.71594931,106520.0,106510.0,0.99316]
[1762782710051,0.73622126,106520.0,106510.0,0.99316]
[1762782710433,0.73722126,106520.0,106510.0,0.99316]
[1762782710833,0.71694931,106520.0,106510.0,0.99316]
[1762782711969,0.76694931,106520.0,106510.0,0.99316]
[1762782713032,0.44416887,106520.0,106510.0,1.18409173]
[1762782714043,0.44316887,106520.0,106510.0,1.08599]
[1762782714241,0.63092703,106520.0,106510.0,1.08599]
[1762782714998,0.62992703,106520.0,106510.0,1.08599]
[1762782715199,0.69748703,106520.0,106510.0,1.04311]
[1762782715424,0.65113703,106520.0,106510.0,1.08681]
[1762782716488,0.72645703,106520.0,106510.0,0.99416]
[1762782718628,0.68010703,106520.0,106510.0,1.11363173]
[1762782718823,0.68010703,106520.0,106510.0,1.01553]
[1762782719700,0.72645703,106520.0,106510.0,1.01553]
[1762782720755,0.46337887,106520.0,106510.0,1.08829]
[1762782720957,0.44216887,106520.0,106510.0,1.08829]
[1762782721376,0.62992703,106520.0,106510.0,1.08829]
[1762782721908,0.44216887,106520.0,106510.0,1.08829]
[1762782722393,0.62992703,106520.0,106510.0,1.08829]
[1762782722599,0.44216887,106520.0,106510.0,1.08829]
[1762782723004,0.44216887,106520.0,106510.0,1.18639173]
[1762782723650,0.44216887,106520.0,106510.0,1.08829]
[1762782723855,0.62992703,106520.0,106510.0,1.08829]
[1762782724720,0.44216887,106520.0,106510.0,1.08829]
[1762782724975,0.62992703,106520.0,106510.0,1.08829]
[1762782725707,0.44216887,106520.0,106510.0,1.08829]
[1762782728705,0.44216887,106520.0,106510.0,1.27606579]
[1762782728926,0.44216887,106520.0,106510.0,1.08829]
[1762782730244,0.62992703,106520.0,106510.0,1.08829]
[1762782730678,0.44216887,106520.0,106510.0,1.08829]
[1762782731260,0.62992703,106520.0,106510.0,1.08829]
[1762782731444,0.44216887,106520.0,106510.0,1.08829]
[1762782732089,0.62992703,106520.0,106510.0,1.08829]
[1762782732292,0.44216887,106520.0,106510.0,1.08829]
[1762782732844,0.44216887,106520.0,106510.0,1.27606579]
[1762782733238,0.44216887,106520.0,106510.0,1.35985115]
[1762782734239,0.44216887,106520.0,106510.0,1.27606579]
[1762782735802,0.36398397,106520.0,106510.0,1.27606579]
[1762782736445,0.04098397,106520.0,106510.0,1.60613796]
[1762782737001,0.04098397,106520.0,106510.0,1.63431894]
[1762782737360,0.04098397,106520.0,106510.0,1.63331894]
[1762782737560,0.04098397,106520.0,106510.0,1.73342067]
[1762782737842,0.04098397,106520.0,106510.0,1.4033485]
[1762782738636,0.04098397,106520.0,106510.0,1.4043485]
[1762782742304,0.04098397,106520.0,106510.0,1.73442067]
[1762782742508,0.04098397,106520.0,106510.0,1.73574451]
[1762782742707,3.97e-06,106520.0,106510.0,1.73574451]
[1762782742911,0.43568,106540.0,106530.0,0.26306656]
[1762782743038,0.47676016,106540.0,106530.0,0.35842743]
[1762782743237,0.47676016,106540.0,106530.0,0.40353638]
[1762782744692,0.47676016,106540.0,106530.0,0.40553638]
[1762782745488,0.47676016,106540.0,106530.0,0.40653638]
[1762782749376,0.36408016,106540.0,106530.0,0.40653638]
[1762782759905,0.04108016,106540.0,106530.0,0.40653638]
[1762782764190,0.00048016,106540.0,106530.0,0.40653638]
[1762782764372,0.04128016,106540.0,106530.0,0.40653638]
[1762782765144,0.04128016,106540.0,106530.0,0.40353638]
[1762782765728,0.04128016,106540.0,106530.0,0.40753638]
[1762782781859,0.04128016,106540.0,106530.0,0.21979584]
[1762782782061,0.04128016,106540.0,106530.0,0.17471497]
[1762782782262,0.32251308,106540.0,106530.0,0.10016497]
[1762782782690,0.32251308,106540.0,106530.0,0.09816497]
[1762782783132,0.32251308,106540.0,106530.0,0.09916497]
[1762782783337,0.32251308,106540.0,106530.0,0.09716497]
[1762782783856,0.32251308,106540.0,106530.0,0.09816497]
[1762782784058,0.32251308,106540.0,106530.0,0.09716497]
[1762782784259,0.04128016,106540.0,106530.0,0.15868405]
[1762782784459,0.00048016,106540.0,106530.0,0.19937405]
[1762782784717,0.04128016,106540.0,106530.0,0.19937405]
[1762782785336,0.22900308,106540.0,106530.0,0.19937405]
[1762782785543,0.04128016,106540.0,106530.0,0.19937405]
[1762782786517,0.22900308,106540.0,106530.0,0.19937405]
[1762782786835,0.57256308,106540.0,106530.0,0.12383497]
[1762782787039,0.64551308,106540.0,106530.0,0.00085895]
[1762782787986,0.70987976,106540.0,106530.0,0.00085895]
[1762782788864,0.71087976,106540.0,106530.0,0.00085895]
[1762782789370,0.36528016,106540.0,106530.0,0.08991895]
[1762782789580,0.36528016,106540.0,106530.0,0.10909212]
[1762782789884,0.36628016,106540.0,106530.0,0.10909212]
[1762782790240,0.55300308,106540.0,106530.0,0.08991895]
[1762782790454,0.64651308,106540.0,106530.0,0.02155895]
[1762782791321,0.64651308,106540.0,106530.0,0.00085895]
[1762782791751,0.64551308,106540.0,106530.0,0.00085895]
[1762782792912,0.64651308,106540.0,106530.0,0.00085895]
[1762782794522,0.64751308,106540.0,106530.0,0.00085895]
[1762782794729,0.68369536,106540.0,106530.0,0.00085895]
[1762782797869,0.71188283,106540.0,106530.0,0.00085895]
[1762782799113,0.73208886,106540.0,106530.0,0.00085895]
[1762782799337,0.71188283,106540.0,106530.0,0.00085895]
[1762782799528,0.7320841,106540.0,106530.0,0.00085895]
[1762782799931,0.71188283,106540.0,106530.0,0.00085895]
[1762782800330,0.71088283,106540.0,106530.0,0.00085895]
[1762782800792,0.70988283,106540.0,106530.0,0.00085895]
[1762782801181,0.71288283,106540.0,106530.0,0.00085895]
[1762782801848,0.71688283,106540.0,106530.0,0.00085895]
[1762782807216,0.73708803,106540.0,106530.0,0.00085895]
[1762782807422,0.75620169,106540.0,106530.0,0.00085895]
[1762782808320,0.76497205,106540.0,106530.0,0.00085895]
[1762782809185,0.23599715,106520.0,106480.0,0.17460214]
[1762782809373,0.18781006,106500.0,106480.0,0.17460214]
[1762782809698,0.0408,106490.0,106480.0,0.49760214]
[1762782809873,0.0408,106490.0,106480.0,0.13453214]
[1762782810048,0.0408,106490.0,106480.0,0.16354214]
[1762782810247,0.0408,106490.0,106480.0,0.35137084]
[1762782810468,0.04084797,106490.0,106480.0,0.39144084]
[1762782810841,0.04084797,106490.0,106480.0,0.39244084]
[1762782811120,0.04084797,106490.0,106480.0,0.39144084]
[1762782811282,0.04084797,106490.0,106480.0,0.39444084]
[1762782811864,0.04084797,106490.0,106480.0,0.39244084]
[1762782812065,0.04084797,106490.0,106480.0,0.39444084]
[1762782815352,0.04084797,106490.0,106480.0,0.7245947]
[1762782815563,0.04084797,106490.0,106480.0,0.39444084]
[1762782820158,0.04084797,106490.0,106480.0,0.39560318]
[1762782820508,0.04084797,106490.0,106480.0,0.35709706]
[1762782820712,0.04084797,106490.0,106480.0,0.28177104]
[1762782821079,0.04084797,106490.0,106480.0,0.35709706]
[1762782832386,4.797e-05,106490.0,106480.0,0.35709706]
[1762782832686,0.04080797,106490.0,106480.0,0.35709706]
[1762782832889,0.04080797,106490.0,106480.0,0.42123422]
[1762782840538,0.04080797,106490.0,106480.0,0.56873422]
[1762782840758,0.04080797,106490.0,106480.0,0.56673422]
[1762782841160,0.04080797,106490.0,106480.0,0.56973422]
[1762782841507,0.04080797,106490.0,106480.0,0.57373422]
[1762782842906,0.04080797,106490.0,106480.0,0.56973422]
[1762782843147,0.04080797,106490.0,106480.0,0.56873422]
[1762782843484,0.04080797,106490.0,106480.0,0.57173422]
[1762782846188,0.04080797,106490.0,106480.0,0.42423422]
[1762782846614,0.04080797,106490.0,106480.0,0.36009706]
[1762782850536,0.55161903,106490.0,106480.0,0.17226836]
[1762782851091,0.55161903,106490.0,106480.0,0.05687234]
[1762782851092,0.56192903,106490.0,106480.0,0.05687234]
[1762782851314,0.55161903,106490.0,106480.0,0.10290234]
[1762782851710,0.55161903,106490.0,106480.0,0.09990234]
[1762782852206,0.56192903,106490.0,106480.0,0.09990234]
[1762782852389,0.56192903,106490.0,106480.0,0.09690234]
[1762782852829,0.56192903,106490.0,106480.0,0.09790234]
[1762782853254,0.56192903,106490.0,106480.0,0.09990234]
[1762782854989,0.37411797,106490.0,106480.0,0.09990234]
[1762782855130,0.56192903,106490.0,106480.0,0.09990234]
[1762782856033,0.56192903,106490.0,106480.0,0.05387234]
[1762782856221,0.63677903,106490.0,106480.0,0.00416234]
[1762782857375,0.63677903,106490.0,106480.0,0.00316234]
[1762782857576,0.63677903,106490.0,106480.0,0.00116234]
[1762782858054,0.63677903,106490.0,106480.0,0.00216234]
[1762782858262,0.66497633,106490.0,106480.0,0.00216234]
[1762782860600,0.70115861,106490.0,106480.0,0.00216234]
[1762782861418,0.54936633,106490.0,106480.0,0.07071234]
[1762782861624,0.59012633,106490.0,106480.0,0.10127234]
[1762782861796,0.66497633,106490.0,106480.0,0.00216234]
[1762782862146,0.66597633,106490.0,106480.0,0.00216234]
[1762782862721,0.66597633,106490.0,106480.0,0.00116234]
[1762782863110,0.66697633,106490.0,106480.0,0.00116234]
[1762782865358,0.70315861,106490.0,106480.0,0.00116234]
[1762782866078,0.18786091,106470.0,106450.0,0.06603234]
[1762782866281,0.51086091,106470.0,106460.0,0.07532602]
[1762782866498,0.57437091,106470.0,106460.0,0.07532602]
[1762782866706,0.57437091,106470.0,106460.0,0.07579116]
[1762782866928,0.64790091,106470.0,106460.0,0.07579116]
[1762782867110,0.67610036,106470.0,106460.0,0.00046514]
[1762782867743,0.67610036,106470.0,106460.0,0.00246514]
[1762782868192,0.63223036,106470.0,106460.0,0.00246514]
[1762782868623,0.63223036,106470.0,106460.0,0.02421514]
[1762782868828,0.60257036,106470.0,106460.0,0.05036514]
[1762782869180,0.63223036,106470.0,106460.0,0.02321514]
[1762782869383,0.67610036,106470.0,106460.0,0.02321514]
[1762782869849,0.68531156,106470.0,106460.0,0.02321514]
[1762782870236,0.68531156,106470.0,106460.0,0.00146514]
[1762782874508,0.68631156,106470.0,106460.0,0.00146514]
[1762782874969,0.68631156,106470.0,106460.0,0.00046514]
[1762782875419,0.72249384,106470.0,106460.0,0.00046514]
[1762782884895,0.39949384,106470.0,106460.0,0.00046514]
[1762782885098,0.72249384,106470.0,106460.0,0.00046514]
[1762782886928,0.61278156,106470.0,106460.0,0.00046514]
[1762782887127,0.54927156,106470.0,106460.0,0.09696514]
[1762782887342,0.59003156,106470.0,106460.0,0.09696514]
[1762782887538,0.61278156,106470.0,106460.0,0.09696514]
[1762782888448,0.28978156,106470.0,106460.0,0.09696514]
[1762782888606,0.61278156,106470.0,106460.0,0.09696514]
[1762782890050,0.59003156,106470.0,106460.0,0.09696514]
[1762782890306,0.59001699,106470.0,106460.0,0.09696514]
[1762782890597,0.03841065,106470.0,106460.0,0.09696514]
[1762782890900,0.40217065,106470.0,106460.0,0.09696514]
[1762782891077,0.59001699,106470.0,106460.0,0.09696514]
[1762782891669,0.68410699,106470.0,106460.0,0.02221514]
[1762782891873,0.68410699,106470.0,106460.0,0.00046514]
[1762782893840,0.64023699,106470.0,106460.0,0.09731116]
[1762782893969,0.61057699,106470.0,106460.0,0.16692116]
[1762782894455,0.35219945,106470.0,106460.0,0.20455341]
[1762782894665,0.36476,106470.0,106460.0,0.20455341]
[1762782895066,0.55260634,106470.0,106460.0,0.16692116]
[1762782895451,0.37428799,106470.0,106460.0,0.16692116]
[1762782895678,0.56213433,106470.0,106460.0,0.16692116]
[1762782895805,0.37428799,106470.0,106460.0,0.16692116]
[1762782896006,0.56213433,106470.0,106460.0,0.16792116]
[1762782896202,0.36376,106470.0,106460.0,0.16792116]
[1762782896455,0.36376,106470.0,106460.0,0.35578514]
[1762782896957,0.36376,106470.0,106460.0,0.16792116]
[1762782897590,0.55160634,106470.0,106460.0,0.16792116]
[1762782898476,0.36376,106470.0,106460.0,0.35578514]
[1762782898890,0.56079606,106470.0,106460.0,0.16792116]
[1762782899083,0.37294972,106470.0,106460.0,0.16792116]
[1762782899445,0.37294972,106470.0,106460.0,0.35578514]
[1762782899446,0.36376,106470.0,106460.0,0.35578514]
[1762782901011,0.36376,106470.0,106460.0,0.41230379]
[1762782901247,0.57172634,106470.0,106460.0,0.12700116]
[1762782901480,0.57172634,106470.0,106460.0,0.17081116]
[1762782901988,0.58092171,106470.0,106460.0,0.17081116]
[1762782902208,0.57172634,106470.0,106460.0,0.17081116]
[1762782902553,0.57172634,106470.0,106460.0,0.12700116]
[1762782902787,0.57172634,106470.0,106460.0,0.17081116]
[1762782903418,0.36376,106470.0,106460.0,0.35867514]
[1762782904132,0.36376,106470.0,106460.0,0.17081116]
[1762782904333,0.36376,106470.0,106460.0,0.35867514]
[1762782905674,0.56102786,106470.0,106460.0,0.17081116]
[1762782905875,0.55160634,106470.0,106460.0,0.17081116]
[1762782906289,0.36376,106470.0,106460.0,0.35867514]
[1762782909015,0.36376,106470.0,106460.0,0.41548268]
[1762782909560,0.04076,106470.0,106460.0,0.41548268]
[1762782909924,0.36376,106470.0,106460.0,0.41548268]